[Event "*** Titled Tuesday Blitz"]
[Site "Chess.com"]
[Date "2019.04.02"]
[Round "2"]
[White "grzechu96"]
[Black "AdrianaNikolova"]
[Result "1-0"]
[WhiteElo "2557"]
[BlackElo "2464"]
[TimeControl "180+2"]
[EndTime "14:24:41 PDT"]
[Termination "grzechu96 won by resignation"]

1. e4 {[%clk 0:03:01.9]} 1... c5 {[%clk 0:03:00.2]} 2. Nf3 {[%clk 0:03:00.4]}
2... Nc6 {[%clk 0:02:59.9]} 3. Bb5 {[%clk 0:03:00.6]} 3... d6 {[%clk 0:03:00.6]}
4. Bxc6+ {[%clk 0:03:00.7]} 4... bxc6 {[%clk 0:03:02.5]} 5. e5 {[%clk
0:03:02.1]} 5... dxe5 {[%clk 0:02:56]} 6. Nxe5 {[%clk 0:03:04]} 6... Qd5 {[%clk
0:02:56.9]} 7. Nf3 {[%clk 0:03:05.1]} 7... Qe4+ {[%clk 0:02:58.2]} 8. Kf1 {[%clk
0:03:06.6]} 8... Nf6 {[%clk 0:02:50.5]} 9. d3 {[%clk 0:03:07.8]} 9... Qd5 {[%clk
0:02:35.4]} 10. Nbd2 {[%clk 0:03:01.1]} 10... Bg4 {[%clk 0:02:31.5]} 11. b3
{[%clk 0:02:59.1]} 11... e6 {[%clk 0:02:19.2]} 12. Bb2 {[%clk 0:02:59.5]} 12...
Be7 {[%clk 0:02:20.6]} 13. Qe1 {[%clk 0:02:51.4]} 13... O-O {[%clk 0:02:13.1]}
14. h3 {[%clk 0:02:51]} 14... Bh5 {[%clk 0:02:13.2]} 15. Qe3 {[%clk 0:02:45.9]}
15... Nd7 {[%clk 0:02:06.5]} 16. Kg1 {[%clk 0:02:37.5]} 16... Bf6 {[%clk
0:01:53.1]} 17. Bxf6 {[%clk 0:02:38]} 17... Nxf6 {[%clk 0:01:55]} 18. Kh2 {[%clk
0:02:39]} 18... Nd7 {[%clk 0:01:40.1]} 19. Rhe1 {[%clk 0:02:38.7]} 19... a5
{[%clk 0:01:38.8]} 20. a4 {[%clk 0:02:39.2]} 20... Bg6 {[%clk 0:01:29.2]} 21.
Ne5 {[%clk 0:02:30.4]} 21... Rfe8 {[%clk 0:00:55.6]} 22. Nxd7 {[%clk 0:02:22.3]}
22... Qxd7 {[%clk 0:00:57.5]} 23. Qxc5 {[%clk 0:02:22.7]} 23... Qd5 {[%clk
0:00:52.4]} 24. Re5 {[%clk 0:02:21.3]} 24... Qd7 {[%clk 0:00:50.6]} 25. Nc4
{[%clk 0:02:15.2]} 25... Qc7 {[%clk 0:00:46.2]} 26. Qd6 {[%clk 0:02:11.5]} 26...
Qxd6 {[%clk 0:00:39]} 27. Nxd6 {[%clk 0:02:13.4]} 27... Red8 {[%clk 0:00:40]}
28. Nc4 {[%clk 0:02:12.8]} 28... Rd5 {[%clk 0:00:41.2]} 29. Rae1 {[%clk
0:02:13.9]} 29... Ra6 {[%clk 0:00:39.8]} 30. f3 {[%clk 0:02:12.1]} 30... h6
{[%clk 0:00:39.6]} 31. Kg3 {[%clk 0:02:12.8]} 31... Kf8 {[%clk 0:00:40.7]} 32.
Kf2 {[%clk 0:02:14]} 32... c5 {[%clk 0:00:40.5]} 33. g4 {[%clk 0:01:58.3]} 33...
Bh7 {[%clk 0:00:40.9]} 34. f4 {[%clk 0:01:58.3]} 34... Bg8 {[%clk 0:00:41.8]}
35. Ne3 {[%clk 0:01:53.9]} 35... Rxe5 {[%clk 0:00:34.6]} 36. fxe5 {[%clk
0:01:55.8]} 36... f6 {[%clk 0:00:32.3]} 37. Nc4 {[%clk 0:01:57.1]} 37... Ke7
{[%clk 0:00:31.5]} 38. Kg3 {[%clk 0:01:56.4]} 38... Bf7 {[%clk 0:00:32.3]} 39.
Nd2 {[%clk 0:01:54.6]} 39... Be8 {[%clk 0:00:32.8]} 40. Re4 {[%clk 0:01:49.2]}
40... f5 {[%clk 0:00:26.2]} 41. Rc4 {[%clk 0:01:49]} 41... Rc6 {[%clk
0:00:24.3]} 42. Rf4 {[%clk 0:01:35.4]} 42... g5 {[%clk 0:00:25.2]} 43. Rf2
{[%clk 0:01:35.1]} 43... f4+ {[%clk 0:00:26.1]} 44. Kf3 {[%clk 0:01:36.5]} 44...
Bg6 {[%clk 0:00:27.4]} 45. Nc4 {[%clk 0:01:36.9]} 45... Rc8 {[%clk 0:00:26.3]}
46. Nxa5 {[%clk 0:01:35.6]} 46... Be8 {[%clk 0:00:21.1]} 47. Ke2 {[%clk
0:01:32.3]} 47... Rd8 {[%clk 0:00:19.7]} 48. Kd2 {[%clk 0:01:28.6]} 48... Rd5
{[%clk 0:00:19.6]} 49. Nc4 {[%clk 0:01:29.5]} 49... Bc6 {[%clk 0:00:20.2]} 50.
h4 {[%clk 0:01:12.5]} 50... Rd8 {[%clk 0:00:16.9]} 51. hxg5 {[%clk 0:00:59.8]}
51... hxg5 {[%clk 0:00:18.8]} 52. Rh2 {[%clk 0:01:01.4]} 52... Kf7 {[%clk
0:00:17.8]} 53. Ke2 {[%clk 0:01:00.9]} 53... Kg6 {[%clk 0:00:14.8]} 54. Kf2
{[%clk 0:00:59.1]} 54... Rf8 {[%clk 0:00:13.8]} 55. Rh3 {[%clk 0:00:46.9]} 55...
Ra8 {[%clk 0:00:13.3]} 56. Rh5 {[%clk 0:00:43.3]} 56... Rd8 {[%clk 0:00:13.1]}
57. Nd2 {[%clk 0:00:35.3]} 57... Rf8 {[%clk 0:00:11.5]} 58. Nf3 {[%clk 0:00:35]}
58... Bxf3 {[%clk 0:00:11.7]} 59. Kxf3 {[%clk 0:00:36.9]} 59... Rd8 {[%clk
0:00:13.3]} 60. Rh1 {[%clk 0:00:35.9]} 60... Rd5 {[%clk 0:00:14.6]} 61. Re1
{[%clk 0:00:36.1]} 61... Rd8 {[%clk 0:00:16]} 62. a5 {[%clk 0:00:36.8]} 62...
Rh8 {[%clk 0:00:16.2]} 63. a6 {[%clk 0:00:37.5]} 63... Rh3+ {[%clk 0:00:16.3]}
64. Kg2 {[%clk 0:00:38.1]} 64... Rh7 {[%clk 0:00:11.9]} 65. Ra1 {[%clk
0:00:38.1]} 65... Ra7 {[%clk 0:00:12.1]} 66. c3 {[%clk 0:00:37.8]} 66... Kf7
{[%clk 0:00:13.3]} 67. b4 {[%clk 0:00:39.1]} 67... cxb4 {[%clk 0:00:13.5]} 68.
cxb4 {[%clk 0:00:41]} 68... Ke7 {[%clk 0:00:15.1]} 69. b5 {[%clk 0:00:42.4]}
69... Kd7 {[%clk 0:00:16.3]} 70. b6 {[%clk 0:00:44]} 70... Ra8 {[%clk
0:00:17.8]} 71. b7 {[%clk 0:00:42.7]} 1-0

[Event "*** Titled Tuesday Blitz"]
[Site "Chess.com"]
[Date "2019.04.02"]
[Round "2"]
[White "Karina_Oparina"]
[Black "northridgehawk"]
[Result "1-0"]
[WhiteElo "2238"]
[BlackElo "2210"]
[TimeControl "180+2"]
[EndTime "14:24:58 PDT"]
[Termination "Karina_Oparina won by resignation"]

1. Nf3 {[%clk 0:03:00.2]} 1... Nf6 {[%clk 0:02:58.1]} 2. g3 {[%clk 0:03:00.8]}
2... g6 {[%clk 0:02:58.9]} 3. Bg2 {[%clk 0:02:59.7]} 3... Bg7 {[%clk 0:03:00.2]}
4. O-O {[%clk 0:02:58.9]} 4... O-O {[%clk 0:03:01]} 5. c4 {[%clk 0:02:56.2]}
5... d5 {[%clk 0:03:01.4]} 6. cxd5 {[%clk 0:02:54.3]} 6... Nxd5 {[%clk
0:03:03.3]} 7. Nc3 {[%clk 0:02:54.6]} 7... Nb6 {[%clk 0:03:03.1]} 8. e4 {[%clk
0:02:54.5]} 8... Nc6 {[%clk 0:03:04.1]} 9. b3 {[%clk 0:02:49.1]} 9... e5 {[%clk
0:03:01.7]} 10. Bb2 {[%clk 0:02:49.1]} 10... h6 {[%clk 0:02:58.6]} 11. Nd5
{[%clk 0:02:47.9]} 11... Bg4 {[%clk 0:02:56.9]} 12. h3 {[%clk 0:02:40.9]} 12...
Be6 {[%clk 0:02:52.8]} 13. Ne3 {[%clk 0:02:37.1]} 13... Nd4 {[%clk 0:02:51.8]}
14. Nxd4 {[%clk 0:02:36]} 14... exd4 {[%clk 0:02:53.7]} 15. Ng4 {[%clk
0:02:25.6]} 15... h5 {[%clk 0:02:50.7]} 16. Nh2 {[%clk 0:02:25.6]} 16... Qd7
{[%clk 0:02:50]} 17. h4 {[%clk 0:02:24.2]} 17... Bh3 {[%clk 0:02:47.7]} 18. d3
{[%clk 0:02:24.3]} 18... Bxg2 {[%clk 0:02:47.9]} 19. Kxg2 {[%clk 0:02:25.1]}
19... a5 {[%clk 0:02:37.3]} 20. a4 {[%clk 0:02:23.1]} 20... Qe6 {[%clk
0:02:34.9]} 21. Nf3 {[%clk 0:02:19.6]} 21... c5 {[%clk 0:02:33.5]} 22. Rc1
{[%clk 0:02:18.6]} 22... Nd7 {[%clk 0:02:34.8]} 23. Ba3 {[%clk 0:02:10.7]} 23...
b6 {[%clk 0:02:35.6]} 24. Nd2 {[%clk 0:02:08.5]} 24... f5 {[%clk 0:02:22.6]} 25.
f4 {[%clk 0:02:03.7]} 25... Nf6 {[%clk 0:02:19.6]} 26. Qf3 {[%clk 0:01:58]}
26... Ng4 {[%clk 0:02:19.9]} 27. Nc4 {[%clk 0:01:53.8]} 27... fxe4 {[%clk
0:02:15.6]} 28. Qxe4 {[%clk 0:01:52.2]} 28... Rae8 {[%clk 0:02:14.7]} 29. Rfe1
{[%clk 0:01:47.6]} 29... Qf7 {[%clk 0:02:00.7]} 30. Qf3 {[%clk 0:01:33.1]} 30...
Kh7 {[%clk 0:01:45]} 31. Nd6 {[%clk 0:01:20.6]} 31... Qxb3 {[%clk 0:01:36.2]}
32. Nxe8 {[%clk 0:01:18.2]} 32... Ne3+ {[%clk 0:01:36.7]} 33. Rxe3 {[%clk
0:01:12.3]} 33... dxe3 {[%clk 0:01:37.3]} 34. Nxg7 {[%clk 0:01:11.3]} 34... Qxa3
{[%clk 0:01:38.4]} 35. Ne6 {[%clk 0:01:08.1]} 35... Qxc1 {[%clk 0:01:37.6]} 36.
Nxf8+ {[%clk 0:01:08.7]} 36... Kg8 {[%clk 0:01:38.4]} 37. Nxg6 {[%clk
0:01:05.3]} 37... Qd2+ {[%clk 0:01:36.9]} 38. Kh3 {[%clk 0:01:04.7]} 38... Qxd3
{[%clk 0:01:24.1]} 39. Ne5 {[%clk 0:01:04]} 39... Qf5+ {[%clk 0:01:17.9]} 40.
Kh2 {[%clk 0:00:53.5]} 40... Qc2+ {[%clk 0:01:17.9]} 41. Kh3 {[%clk 0:00:54.4]}
41... e2 {[%clk 0:01:09.4]} 42. Qd5+ {[%clk 0:00:54.8]} 42... Kh8 {[%clk
0:01:04.5]} 43. Qd8+ {[%clk 0:00:52.2]} 43... Kg7 {[%clk 0:01:03.9]} 44. Qe7+
{[%clk 0:00:51.9]} 44... Kh8 {[%clk 0:00:52.7]} 45. Qf6+ {[%clk 0:00:44.4]}
45... Kg8 {[%clk 0:00:52.8]} 46. Qf7+ {[%clk 0:00:44.5]} 46... Kh8 {[%clk
0:00:53.8]} 47. Qxh5+ {[%clk 0:00:34.4]} 47... Kg8 {[%clk 0:00:52.2]} 48. Qe8+
{[%clk 0:00:32.3]} 48... Kg7 {[%clk 0:00:49.6]} 49. Qe7+ {[%clk 0:00:31.3]}
49... Kg8 {[%clk 0:00:49.2]} 50. Qe6+ {[%clk 0:00:31.3]} 50... Kg7 {[%clk
0:00:49.7]} 51. Qf7+ {[%clk 0:00:27.6]} 51... Kh8 {[%clk 0:00:50.3]} 52. Ng6+
{[%clk 0:00:26.8]} 52... Qxg6 {[%clk 0:00:50.7]} 53. Qxg6 {[%clk 0:00:26.1]}
53... e1=Q {[%clk 0:00:52.1]} 54. Qxb6 {[%clk 0:00:23.5]} 54... Qf1+ {[%clk
0:00:47.7]} 55. Kg4 {[%clk 0:00:23.3]} 55... Qd1+ {[%clk 0:00:46.2]} 56. Kg5
{[%clk 0:00:22.7]} 56... Qxa4 {[%clk 0:00:43.9]} 57. Kh6 {[%clk 0:00:18.1]}
57... Kg8 {[%clk 0:00:37]} 58. Qg6+ {[%clk 0:00:15.1]} 58... Kf8 {[%clk
0:00:38.2]} 59. Qd6+ {[%clk 0:00:15.6]} 59... Ke8 {[%clk 0:00:39.3]} 60. Qxc5
{[%clk 0:00:15.6]} 60... Qb4 {[%clk 0:00:31.9]} 61. Qe5+ {[%clk 0:00:13.3]}
61... Kd7 {[%clk 0:00:32.2]} 62. f5 {[%clk 0:00:12.6]} 62... a4 {[%clk
0:00:33.3]} 63. f6 {[%clk 0:00:12.8]} 63... a3 {[%clk 0:00:33.6]} 64. f7 {[%clk
0:00:13.6]} 64... a2 {[%clk 0:00:31.2]} 65. Qe8+ {[%clk 0:00:11.9]} 65... Kc7
{[%clk 0:00:28.9]} 66. f8=Q {[%clk 0:00:12.4]} 66... Qxf8+ {[%clk 0:00:28.9]}
67. Qxf8 {[%clk 0:00:13.1]} 67... a1=Q {[%clk 0:00:30.8]} 68. Qg7+ {[%clk
0:00:14]} 68... Qxg7+ {[%clk 0:00:28.7]} 69. Kxg7 {[%clk 0:00:14.8]} 69... Kd7
{[%clk 0:00:30.6]} 70. h5 {[%clk 0:00:15.6]} 1-0

[Event "*** Titled Tuesday Blitz"]
[Site "Chess.com"]
[Date "2019.04.02"]
[Round "2"]
[White "ChessQueen"]
[Black "sergiochess83"]
[Result "1/2-1/2"]
[WhiteElo "2678"]
[BlackElo "2728"]
[TimeControl "180+2"]
[EndTime "14:24:59 PDT"]
[Termination "Game drawn by agreement"]

1. e4 {[%clk 0:03:01.9]} 1... e5 {[%clk 0:02:58.4]} 2. Nf3 {[%clk 0:03:01.8]}
2... Nc6 {[%clk 0:02:59.6]} 3. Bc4 {[%clk 0:03:02.6]} 3... Bc5 {[%clk
0:02:59.5]} 4. d3 {[%clk 0:03:02.6]} 4... Nf6 {[%clk 0:02:59.5]} 5. Bg5 {[%clk
0:03:03.3]} 5... h6 {[%clk 0:02:58.8]} 6. Bh4 {[%clk 0:03:02.3]} 6... Be7 {[%clk
0:02:57.3]} 7. Bg3 {[%clk 0:02:59.7]} 7... d6 {[%clk 0:02:57.6]} 8. a4 {[%clk
0:02:55.8]} 8... O-O {[%clk 0:02:48.2]} 9. O-O {[%clk 0:02:56.4]} 9... Be6
{[%clk 0:02:33.7]} 10. Bxe6 {[%clk 0:02:55.5]} 10... fxe6 {[%clk 0:02:34.6]} 11.
c3 {[%clk 0:02:51.3]} 11... Qe8 {[%clk 0:02:30.9]} 12. Qb3 {[%clk 0:02:46.3]}
12... Qd7 {[%clk 0:02:17.3]} 13. Nbd2 {[%clk 0:02:41.7]} 13... Nh5 {[%clk
0:02:12.1]} 14. d4 {[%clk 0:02:40.8]} 14... Nxg3 {[%clk 0:02:09.1]} 15. hxg3
{[%clk 0:02:41.2]} 15... exd4 {[%clk 0:02:00.8]} 16. Nxd4 {[%clk 0:02:28]} 16...
Nd8 {[%clk 0:01:47.3]} 17. N2f3 {[%clk 0:02:20.5]} 17... c5 {[%clk 0:01:25.9]}
18. Ne2 {[%clk 0:02:21]} 18... Qc6 {[%clk 0:01:27.1]} 19. Nf4 {[%clk 0:02:11.7]}
19... Rxf4 {[%clk 0:01:01.1]} 20. gxf4 {[%clk 0:02:12]} 20... Qxe4 {[%clk
0:01:02.7]} 21. Qb5 {[%clk 0:01:40]} 21... Qxf4 {[%clk 0:00:48.5]} 22. Qd7
{[%clk 0:01:40.7]} 22... Qf7 {[%clk 0:00:46.8]} 23. a5 {[%clk 0:01:21.6]} 23...
Bf8 {[%clk 0:00:44.5]} 24. Qb5 {[%clk 0:01:21.9]} 24... a6 {[%clk 0:00:41.9]}
25. Qb3 {[%clk 0:01:17.5]} 25... Nc6 {[%clk 0:00:41.7]} 26. Rfe1 {[%clk
0:01:16.2]} 26... Re8 {[%clk 0:00:37.6]} 27. Re3 {[%clk 0:01:12.3]} 27... d5
{[%clk 0:00:37.5]} 28. Rae1 {[%clk 0:00:54.6]} 28... Bd6 {[%clk 0:00:37.7]} 29.
Qa2 {[%clk 0:00:46.8]} 29... e5 {[%clk 0:00:36.3]} 30. Nd2 {[%clk 0:00:31.5]}
30... e4 {[%clk 0:00:27.3]} 31. c4 {[%clk 0:00:31.3]} 31... Bf4 {[%clk
0:00:24.6]} 32. cxd5 {[%clk 0:00:32.2]} 32... Bxe3 {[%clk 0:00:24.1]} 33. Rxe3
{[%clk 0:00:32.7]} 33... Nb4 {[%clk 0:00:24.3]} 34. Qc4 {[%clk 0:00:32.5]} 34...
Qxd5 {[%clk 0:00:24.5]} 35. Qxd5+ {[%clk 0:00:19.7]} 35... Nxd5 {[%clk
0:00:26.4]} 36. Rxe4 {[%clk 0:00:21.3]} 36... Rd8 {[%clk 0:00:20.2]} 37. Nc4
{[%clk 0:00:16.6]} 37... Kf7 {[%clk 0:00:19]} 38. g3 {[%clk 0:00:15.3]} 38... g5
{[%clk 0:00:18]} 39. Kg2 {[%clk 0:00:15.6]} 39... Kf6 {[%clk 0:00:18.8]} 40. Re1
{[%clk 0:00:16.4]} 40... Ne7 {[%clk 0:00:16.3]} 41. Rh1 {[%clk 0:00:16.8]} 41...
Nf5 {[%clk 0:00:16.7]} 42. Rc1 {[%clk 0:00:16.2]} 42... Rd4 {[%clk 0:00:08.6]}
43. Nb6 {[%clk 0:00:15.6]} 43... Rb4 {[%clk 0:00:08.9]} 44. Rxc5 {[%clk
0:00:15.5]} 44... Rxb2 {[%clk 0:00:09.6]} 45. Rc7 {[%clk 0:00:16]} 45... g4
{[%clk 0:00:08.5]} 46. Rxb7 {[%clk 0:00:12.4]} 46... Ra2 {[%clk 0:00:07.9]} 47.
Nd5+ {[%clk 0:00:10.8]} 47... Ke5 {[%clk 0:00:08.2]} 48. Nf4 {[%clk 0:00:11.3]}
48... Rxa5 {[%clk 0:00:08]} 49. Rb6 {[%clk 0:00:10.9]} 49... Nh4+ {[%clk
0:00:07.2]} 50. gxh4 {[%clk 0:00:10.5]} 50... Kxf4 {[%clk 0:00:07.6]} 51. Rxh6
{[%clk 0:00:12.1]} 51... Ra2 {[%clk 0:00:06.6]} 52. Rf6+ {[%clk 0:00:12.7]}
52... Ke5 {[%clk 0:00:07.6]} 53. Rf8 {[%clk 0:00:13.9]} 53... a5 {[%clk
0:00:06.8]} 54. h5 {[%clk 0:00:15.4]} 54... Ra3 {[%clk 0:00:06.6]} 55. Ra8
{[%clk 0:00:13.1]} 55... Kf6 {[%clk 0:00:06.5]} 56. h6 {[%clk 0:00:12.6]} 56...
Kg6 {[%clk 0:00:07.6]} 57. Ra6+ {[%clk 0:00:13.6]} 57... Kh7 {[%clk 0:00:08.4]}
58. Kh2 {[%clk 0:00:14.6]} 58... a4 {[%clk 0:00:09.6]} 59. Kg2 {[%clk
0:00:15.9]} 59... Ra1 {[%clk 0:00:09.2]} 60. Kg3 {[%clk 0:00:15.6]} 60... a3
{[%clk 0:00:10]} 61. Kxg4 {[%clk 0:00:16.9]} 61... a2 {[%clk 0:00:10]} 62. Kf3
{[%clk 0:00:18]} 62... Rc1 {[%clk 0:00:08.2]} 63. Rxa2 {[%clk 0:00:17.9]} 63...
Kxh6 {[%clk 0:00:09.8]} 64. Ra7 {[%clk 0:00:17.3]} 64... Kg5 {[%clk 0:00:09.9]}
65. Ra5+ {[%clk 0:00:16.3]} 65... Kf6 {[%clk 0:00:10.2]} 1/2-1/2

[Event "*** Titled Tuesday Blitz"]
[Site "Chess.com"]
[Date "2019.04.02"]
[Round "2"]
[White "DACF2905"]
[Black "GremioPrudente"]
[Result "1/2-1/2"]
[WhiteElo "2076"]
[BlackElo "2063"]
[TimeControl "180+2"]
[EndTime "14:24:59 PDT"]
[Termination "Game drawn - insufficient material"]

1. e4 {[%clk 0:03:01.9]} 1... e6 {[%clk 0:03:00.7]} 2. d4 {[%clk 0:03:02]} 2...
d5 {[%clk 0:03:02.2]} 3. Nc3 {[%clk 0:03:02.4]} 3... Nf6 {[%clk 0:03:02.7]} 4.
e5 {[%clk 0:03:03.1]} 4... Nfd7 {[%clk 0:03:03.3]} 5. f4 {[%clk 0:03:04.2]} 5...
c5 {[%clk 0:03:04.7]} 6. Nf3 {[%clk 0:03:05.5]} 6... Nc6 {[%clk 0:03:06.1]} 7.
Be3 {[%clk 0:03:06.1]} 7... cxd4 {[%clk 0:03:07.5]} 8. Nxd4 {[%clk 0:03:06.5]}
8... Bc5 {[%clk 0:03:08.9]} 9. Qd2 {[%clk 0:03:07.7]} 9... O-O {[%clk
0:03:08.1]} 10. O-O-O {[%clk 0:03:08.5]} 10... a6 {[%clk 0:03:09.6]} 11. Qf2
{[%clk 0:03:02.6]} 11... Nxd4 {[%clk 0:02:30.7]} 12. Bxd4 {[%clk 0:03:02.3]}
12... b6 {[%clk 0:02:32.6]} 13. Bd3 {[%clk 0:03:00.7]} 13... Bb7 {[%clk
0:02:20.6]} 14. Kb1 {[%clk 0:02:58.1]} 14... Rc8 {[%clk 0:02:14.7]} 15. Ne2
{[%clk 0:02:56.9]} 15... Qe7 {[%clk 0:02:08.8]} 16. g4 {[%clk 0:02:56.1]} 16...
Rc7 {[%clk 0:01:59.9]} 17. f5 {[%clk 0:02:55.6]} 17... Nxe5 {[%clk 0:01:51.2]}
18. f6 {[%clk 0:02:37.8]} 18... gxf6 {[%clk 0:01:41.2]} 19. Qh4 {[%clk
0:02:22.8]} 19... Ng6 {[%clk 0:01:40.4]} 20. Qxf6 {[%clk 0:02:12.5]} 20... Qxf6
{[%clk 0:01:21.4]} 21. Bxf6 {[%clk 0:02:12.5]} 21... Bd6 {[%clk 0:01:23.3]} 22.
h4 {[%clk 0:02:09.1]} 22... Be7 {[%clk 0:01:23.6]} 23. Bd4 {[%clk 0:02:03.5]}
23... Bc5 {[%clk 0:01:24.1]} 24. h5 {[%clk 0:01:53.3]} 24... Ne7 {[%clk
0:01:17.5]} 25. Be5 {[%clk 0:01:52.8]} 25... Rcc8 {[%clk 0:01:14.4]} 26. Bf6
{[%clk 0:01:48.5]} 26... Nc6 {[%clk 0:01:04.8]} 27. c3 {[%clk 0:01:47.7]} 27...
Be7 {[%clk 0:01:05.8]} 28. g5 {[%clk 0:01:46.2]} 28... e5 {[%clk 0:01:00.3]} 29.
Bf5 {[%clk 0:01:45.5]} 29... Rc7 {[%clk 0:00:55.5]} 30. Rhg1 {[%clk 0:01:45.5]}
30... Bc8 {[%clk 0:00:49.3]} 31. Bxc8 {[%clk 0:01:41.3]} 31... Rfxc8 {[%clk
0:00:46.6]} 32. Rxd5 {[%clk 0:01:42.8]} 32... Bxf6 {[%clk 0:00:39.7]} 33. gxf6+
{[%clk 0:01:43]} 33... Kh8 {[%clk 0:00:39.6]} 34. Rg7 {[%clk 0:01:42.1]} 34...
Rd8 {[%clk 0:00:33.5]} 35. Rxd8+ {[%clk 0:01:40.9]} 35... Nxd8 {[%clk
0:00:34.6]} 36. Ng3 {[%clk 0:01:41.9]} 36... Rc6 {[%clk 0:00:32.1]} 37. Ne4
{[%clk 0:01:42.8]} 37... Re6 {[%clk 0:00:21.4]} 38. Rg2 {[%clk 0:01:35.9]} 38...
Nc6 {[%clk 0:00:14.1]} 39. h6 {[%clk 0:01:32.3]} 39... Re8 {[%clk 0:00:13.5]}
40. Nd6 {[%clk 0:01:31.8]} 40... Rf8 {[%clk 0:00:11.7]} 41. Kc2 {[%clk
0:01:29.8]} 41... Nd8 {[%clk 0:00:12.3]} 42. Kd3 {[%clk 0:01:30]} 42... Ne6
{[%clk 0:00:13.8]} 43. Ke4 {[%clk 0:01:30.1]} 43... Nf4 {[%clk 0:00:13.7]} 44.
Rg7 {[%clk 0:01:28.2]} 44... Ne6 {[%clk 0:00:05.8]} 45. Nxf7+ {[%clk 0:01:28.8]}
45... Rxf7 {[%clk 0:00:06.7]} 46. Rxf7 {[%clk 0:01:29.2]} 46... Ng5+ {[%clk
0:00:08.2]} 47. Kxe5 {[%clk 0:01:30.6]} 47... Nxf7+ {[%clk 0:00:10.1]} 48. Ke6
{[%clk 0:01:31]} 48... Kg8 {[%clk 0:00:12]} 49. Kd5 {[%clk 0:01:28.6]} 49...
Nxh6 {[%clk 0:00:13.1]} 50. Kc6 {[%clk 0:01:30.5]} 50... Nf7 {[%clk 0:00:12.5]}
51. Kxb6 {[%clk 0:01:32.4]} 51... h5 {[%clk 0:00:14.4]} 52. c4 {[%clk
0:01:32.1]} 52... h4 {[%clk 0:00:16.3]} 53. c5 {[%clk 0:01:33.5]} 53... h3
{[%clk 0:00:18.2]} 54. c6 {[%clk 0:01:34.9]} 54... h2 {[%clk 0:00:20.1]} 55. c7
{[%clk 0:01:36.3]} 55... Nd6 {[%clk 0:00:17.1]} 56. Kc6 {[%clk 0:01:36.8]} 56...
Nc8 {[%clk 0:00:17.4]} 57. Kb7 {[%clk 0:01:36.9]} 57... Nd6+ {[%clk 0:00:17.8]}
58. Kc6 {[%clk 0:01:38]} 58... Nc8 {[%clk 0:00:18.7]} 59. Kd7 {[%clk 0:01:36.5]}
59... Nb6+ {[%clk 0:00:19.5]} 60. Ke8 {[%clk 0:01:36.8]} 60... h1=Q {[%clk
0:00:09.8]} 61. f7+ {[%clk 0:01:37.9]} 61... Kh7 {[%clk 0:00:11.2]} 62. f8=Q
{[%clk 0:01:36.5]} 62... Qc6+ {[%clk 0:00:11.2]} 63. Kf7 {[%clk 0:01:35.6]}
63... Qxc7+ {[%clk 0:00:11]} 64. Qe7 {[%clk 0:01:36.9]} 64... Qxe7+ {[%clk
0:00:06.3]} 65. Kxe7 {[%clk 0:01:38]} 65... Nc4 {[%clk 0:00:04.8]} 66. b3 {[%clk
0:01:39.1]} 66... Ne3 {[%clk 0:00:03.3]} 67. Kd6 {[%clk 0:01:30]} 67... Nc2
{[%clk 0:00:04.2]} 68. Kc5 {[%clk 0:01:29.3]} 68... a5 {[%clk 0:00:05.6]} 69.
Kb5 {[%clk 0:01:29.2]} 69... Nb4 {[%clk 0:00:06.3]} 70. a3 {[%clk 0:01:27.4]}
70... Nc2 {[%clk 0:00:07.3]} 71. Ka4 {[%clk 0:01:22.2]} 71... Kg7 {[%clk
0:00:07.3]} 72. Kxa5 {[%clk 0:01:22]} 72... Nxa3 {[%clk 0:00:07.8]} 73. Kb4
{[%clk 0:01:22.6]} 73... Nc2+ {[%clk 0:00:08.2]} 74. Kc3 {[%clk 0:01:23.5]}
74... Ne3 {[%clk 0:00:08.9]} 75. Kd4 {[%clk 0:01:24.5]} 75... Nf5+ {[%clk
0:00:09.9]} 76. Ke5 {[%clk 0:01:25.4]} 76... Ne7 {[%clk 0:00:11.1]} 77. Kd6
{[%clk 0:01:26.2]} 77... Kf8 {[%clk 0:00:12.5]} 78. Kd7 {[%clk 0:01:26.9]} 78...
Nd5 {[%clk 0:00:12.7]} 79. Kd6 {[%clk 0:01:27.8]} 79... Nb4 {[%clk 0:00:14.1]}
80. Kc5 {[%clk 0:01:28.7]} 80... Nc2 {[%clk 0:00:14.9]} 81. Kc4 {[%clk
0:01:28.9]} 81... Ke8 {[%clk 0:00:16]} 82. Kc3 {[%clk 0:01:30.5]} 82... Na3
{[%clk 0:00:16.7]} 83. b4 {[%clk 0:01:31.8]} 83... Kd8 {[%clk 0:00:16]} 84. Kb3
{[%clk 0:01:33.7]} 84... Nb5 {[%clk 0:00:17.1]} 85. Kc4 {[%clk 0:01:34.8]} 85...
Nc7 {[%clk 0:00:17.9]} 86. Kc5 {[%clk 0:01:36]} 86... Kc8 {[%clk 0:00:19]} 87.
Kb6 {[%clk 0:01:36.8]} 87... Kb8 {[%clk 0:00:19.7]} 88. b5 {[%clk 0:01:37.1]}
88... Nxb5 {[%clk 0:00:20.5]} 1/2-1/2